Cogmind - Beta 11.1 @@@ ROGUE MODE // 2022.06.06 @ 05:17:34 Player: Savant Result: Destroyed by S-43 Plague with Heavy Machine Gun Performance ------------- Evolutions (6) 3000 Regions Visited (23) 4600 Robots Destroyed (220) 1100 Value Destroyed (9530) 9530 Prototype IDs (87) 1740 Alien Tech Used (0) 0 Bonus (6772) 6772 TOTAL SCORE: 26742 Bonus ------- High Alert Combat Kills 430 Follower Combat Kills 1761 Aligned with FarCom 300 Met Data Miner 300 Met Imprinter 300 Destroyed Z-Imprinter 1000 Triggered Deep Caves Wall 500 Exposed GOLEM Chamber 500 Met Warlord at Base 500 MAIN.C Attacked Warlord 500 Warlord Defense Kills 1056 Friendly Fire -375 Cogmind --------- Core Integrity 0/1150 Matter 263/300 Energy 99/100 System Corruption 2% Temperature Cool (9) Movement Core (50) Location -3/Proximity Caves Parts ------- > --- POWER (2) -------- (None) > --- PROPULSION (3) --- Enhanced Biometal Leg Assembled Alloy Leg > --- UTILITY (11) ----- GOLEM Unit > --- WEAPON (3) ------- (None) > --- INVENTORY (5) ---- Minesniffer Drone Bay (10/10) GOLEM Unit Peak State ------------ > --- POWER ------------ Assembled Flux Generator > --- PROPULSION ------- Enhanced Biometal Leg Assembled Alloy Leg Assembled Alloy Leg > --- UTILITY ---------- Assembled Nanovents Assembled Biocell Array Assembled Biocell Array Assembled Suspension Frame Assembled Combat Suite Experimental Armor Integrity Analyzer Experimental Phase Shifter Assembled Alloy Armor Assembled Alloy Armor GOLEM Unit > --- WEAPON ----------- Assembled Focal Cannon Assembled Focal Cannon Assembled Focal Cannon > --- INVENTORY -------- Minesniffer Drone Bay GOLEM Unit GOLEM Unit [Rating: 173] Favorites ----------- Power Assembled Flux Generator Engine Cooled Ion Engine Power Core Fission Core Reactor Assembled Flux Generator Propulsion Assembled Alloy Leg Treads Light Treads Leg Assembled Alloy Leg Wheel Wheel Hover Unit Zionite Glidesys I Utility High-capacity Storage Unit Device Assembled Nanovents Storage High-capacity Storage Unit Processor Advanced Targeting Computer Hackware Authchip [R/Combat] Protection Assembled Alloy Armor Weapon Enhanced Autogun Energy Gun Zionite Laser-M Energy Cannon Assembled Focal Cannon Ballistic Gun Enhanced Autogun Ballistic Cannon AWS/Autocannon Launcher Rocket Array Special Weapon Molecular Deconstructor Impact Weapon Powered Hammer Slashing Weapon Greatsword Piercing Weapon Heavy Pick Build | -11 -10 -10 -10 -9 -8 -8 -7 -7 -7 -7 -6 -6 -6 -6 -6 -6 -5 -5 -5 -4 -4 -4 -3 ------- Run | Scr Mat Min Exi Min Mat Sto Fac Low Low Dat Pro Fac Low Low Zio Dee Pro Fac Ext Fac Upp War Pro Slots Evolved 12 | . . . . . 4 . 2 . . . . 2 . . . . . 2 . 2 . . . Power 1 | . . . . . . . . . . . . . . . . . . 1 . . . . . Propulsion 1 | . . . . . 1 . . . . . . . . . . . . . . . . . . Utility 9 | . . . . . 2 . 2 . . . . 2 . . . . . 1 . 2 . . . Weapon 1 | . . . . . 1 . . . . . . . . . . . . . . . . . . Parts Attached 292 | 6 9 5 4 1 47 50 6 4 18 3 7 28 9 8 13 53 2 2 . 3 . 12 2 Power 12 | 1 . 1 . . 1 4 . . 1 . . . . 1 . 3 . . . . . . . Engine 4 | 1 . . . . . 3 . . . . . . . . . . . . . . . . . Core 3 | . . 1 . . 1 . . . . . . . . 1 . . . . . . . . . Reactor 5 | . . . . . . 1 . . 1 . . . . . . 3 . . . . . . . Propulsion 69 | 2 . . . . 24 14 1 2 3 . 1 6 1 . . 9 . . . 2 . 4 . Treads 27 | 1 . . . . 11 8 . 1 1 . . 3 1 . . . . . . . . 1 . Leg 9 | . . . . . . . . . 1 . . . . . . 4 . . . 2 . 2 . Wheel 27 | 1 . . . . 13 6 1 1 1 . 1 3 . . . . . . . . . . . Hover 6 | . . . . . . . . . . . . . . . . 5 . . . . . 1 . Flight . | . . . . . . . . . . . . . . . . . . . . . . . . Utility 104 | 1 5 1 2 . 12 6 4 2 4 . 5 8 4 4 8 25 . 2 . 1 . 8 2 Device 43 | . 2 . . . 7 1 1 . 2 . 2 3 4 4 1 6 . 1 . . . 7 2 Storage 9 | 1 3 . 2 . . . . . . . . . . . . 3 . . . . . . . Processor 12 | . . . . . . 1 1 1 1 . 2 2 . . 1 . . 1 . 1 . 1 . Hackware 5 | . . . . . 1 . . . . . . 1 . . 1 2 . . . . . . . Protection 35 | . . 1 . . 4 4 2 1 1 . 1 2 . . 5 14 . . . . . . . Artifact . | . . . . . . . . . . . . . . . . . . . . . . . . Weapon 107 | 2 4 3 2 1 10 26 1 . 10 3 1 14 4 3 5 16 2 . . . . . . Energy Gun 8 | 1 . 1 . . . 2 . . . . . . . . . 4 . . . . . . . Energy Cannon 6 | . . . . . 1 2 . . 1 . . 1 . . . 1 . . . . . . . Ballistic Gun 53 | 1 3 2 1 1 8 12 1 . 5 3 1 6 2 2 2 3 . . . . . . . Ballistic Cannon 5 | . . . . . . 1 . . . . . . . . . 3 1 . . . . . . Launcher 4 | . . . . . . 1 . . . . . . 1 . 1 1 . . . . . . . Special Weapon 2 | . . . . . . . . . . . . . . . . 1 1 . . . . . . Impact Weapon 18 | . 1 . . . 1 8 . . 3 . . 3 1 1 . . . . . . . . . Slashing Weapon 7 | . . . 1 . . . . . 1 . . . . . 2 3 . . . . . . . Piercing Weapon 4 | . . . . . . . . . . . . 4 . . . . . . . . . . . Special Melee Weapon . | . . . . . . . . . . . . . . . . . . . . . . . . Unidentified Prototypes 34 | . . . . . 1 9 . . . . . . . . 3 13 . . . 1 . 7 . Parts Lost 69 | . . 2 . . 2 4 1 . 7 . 3 1 1 1 1 20 1 5 1 . . 19 . Power 4 | . . . . . . . . . 1 . . . . . . 2 . . . . . 1 . Propulsion 14 | . . . . . . 2 . . 2 . . . 1 . . 5 . . . . . 4 . Utility 40 | . . . . . 2 1 1 . 3 . 2 1 . 1 . 13 1 4 1 . . 10 . Weapon 11 | . . 2 . . . 1 . . 1 . 1 . . . 1 . . 1 . . . 4 . Highest Loss Streak 12 | . . 2 . . 1 1 1 . 2 . 1 1 1 1 1 8 1 3 1 . . 12 . To Critical Strikes . | . . . . . . . . . . . . . . . . . . . . . . . . Average Slot Usage (%) 88 | . 95 99 100 100 99 99 92 100 98 76 95 87 86 85 88 77 80 77 88 88 89 82 16 Engine 1 | . 14 7 . . . 8 7 7 6 . . . . . . . . . . . . . . Core 1 | . . 7 14 14 9 . . . . . . . . 5 6 . . . . . . . . Reactor 3 | . . . . . . . . . . 7 7 6 6 . . 5 6 5 5 5 5 4 . Treads 4 | . 14 14 14 14 11 11 12 7 7 7 7 6 6 6 6 . . . . . . . . Leg 7 | . . . . . . . . . 3 7 5 . . . . 12 20 17 17 15 15 13 10 Wheel 6 | . 14 14 14 14 15 15 9 14 10 7 8 8 6 6 6 . . . . . . . . Device 12 | . 9 . . . 10 14 11 7 6 15 14 8 6 5 5 6 9 15 35 30 31 26 5 Storage 7 | . 14 14 14 14 9 9 7 7 7 7 7 6 6 6 6 2 9 10 5 9 10 9 . Processor 10 | . . . . . . 2 7 7 15 15 16 20 20 20 20 14 13 10 . . . 2 . Hackware 2 | . . . . . 1 . . . . . . 3 6 6 1 2 13 5 . . . . . Protection 9 | . . 14 14 14 15 10 10 22 15 7 1 6 6 6 13 16 . 2 5 10 10 8 . Energy Cannon 2 | . . . . . . . . . . . . . . . . . . 1 17 15 15 13 . Ballistic Gun 11 | . 27 27 28 28 26 25 23 23 16 . 23 15 18 17 12 . . . . . . . . Ballistic Cannon 1 | . . . . . . . . . . . . . . . . 3 5 4 . . . . . Naked Turns . | . . . . . . . . . . . . . . . . . . . . . . . . Heaviest Build 150 | 13 30 36 54 57 70 70 68 71 78 71 71 91 90 90 90 112 112 150 97 103 103 112 11 Greatest Support 110 | 16 20 20 16 16 40 60 40 20 20 10 26 28 28 30 28 84 84 104 104 104 104 110 12 Greatest Overweight (x) 7 | . 1 2 3 3 6 6 6 3 7 7 7 3 3 3 3 3 1 1 . 1 . 2 3 Average Overweight (x) 2 | . . 1 2 3 2 3 4 3 4 6 5 2 2 2 2 1 . . . . . . . Largest Inventory Capacity 20 | 8 15 15 20 20 20 20 20 20 20 20 20 20 20 20 20 20 20 20 5 5 5 5 5 Average Capacity 15 | 7 13 15 15 20 20 20 20 20 20 20 20 20 20 20 20 10 20 17 5 5 5 5 5 Most Carried 20 | 6 15 15 15 20 20 20 20 20 20 20 20 20 20 20 20 20 20 20 5 5 5 5 5 Average Carried 15 | 3 12 14 14 17 19 19 18 19 19 19 17 19 19 19 19 9 19 17 5 4 4 4 2 Final Capacity 20 | 8 15 15 20 20 20 20 20 20 20 20 20 20 20 20 20 20 20 5 5 5 5 5 5 Final Carried 20 | 6 15 15 15 20 20 19 19 20 17 17 19 19 20 20 20 20 20 5 5 4 5 5 3 Class Distribution -------------------- 24% | Golem 19% | Mutant 10% | Tank 8% | Gunner 7% | Skirmisher 6% | Scavenger-Tank 6% | Commander-Golem 5% | Scavenger-Gunner Dominant Class ---------------- Mutant | -10/Materials Mutant | -10/Mines Mutant | -10/Exiles Mutant | -9/Mines Tank | -8/Materials Skirmisher | -8/Storage Skirmisher | -7/Factory Tank | -7/Lower Caves Tank | -7/Lower Caves Scavenger-Mutant | -7/Data Miner Scavenger-Gunner | -6/Proximity Caves Assassin | -6/Factory Gunner | -6/Lower Caves Gunner | -6/Lower Caves Mutant | -6/Zion Scavenger-Tank | -6/Deep Caves Golem | -5/Proximity Caves Golem | -5/Factory Commander-Golem | -5/Extension Commander-Golem | -4/Factory Golem | -4/Upper Caves Golem | -4/Warlord Mutant | -3/Proximity Caves Resources | -11 -10 -10 -10 -9 -8 -8 -7 -7 -7 -7 -6 -6 -6 -6 -6 -6 -5 -5 -5 -4 -4 -4 -3 ----------- Run | Scr Mat Min Exi Min Mat Sto Fac Low Low Dat Pro Fac Low Low Zio Dee Pro Fac Ext Fac Upp War Pro Matter Collected 7225 | 226 270 145 . 55 1373 1321 274 242 292 . 394 798 576 159 122 740 45 20 78 30 . 65 . Remotely . | . . . . . . . . . . . . . . . . . . . . . . . . Salvage Created 10500 | . 407 264 . 35 1457 1210 259 103 362 . 140 1252 488 99 . 1368 148 720 1102 281 337 468 . Parts 516 | . 29 22 . 2 94 51 13 8 23 . 5 55 16 7 . 41 9 33 52 18 15 23 . Haulers Intercepted 8 | . . . . . 2 6 . . . . . . . . . . . . . . . . . Recyclers Shooed 2 | . . . . . . . . . . . . . . . . . . 1 1 . . . . Parts Field Recycled . | . . . . . . . . . . . . . . . . . . . . . . . . Retrieved Matter . | . . . . . . . . . . . . . . . . . . . . . . . . Parts Self-Destructed 103 | . . . . . . . . 7 31 . 11 . 15 12 . . 9 . . . 18 . . Prevented 2 | . . . . . . . . . 2 . . . . . . . . . . . . . . Kills | -11 -10 -10 -10 -9 -8 -8 -7 -7 -7 -7 -6 -6 -6 -6 -6 -6 -5 -5 -5 -4 -4 -4 -3 ------- Run | Scr Mat Min Exi Min Mat Sto Fac Low Low Dat Pro Fac Low Low Zio Dee Pro Fac Ext Fac Upp War Pro Combat Hostiles Destroyed 245 | . 15 10 . 1 28 15 5 2 7 . 4 19 9 4 . 62 3 29 14 6 5 7 . Melee 6 | . . . . . . . . . . . . 1 . . . 4 . . 1 . . . . Guns 116 | . 15 10 . 1 27 15 5 2 7 . 4 17 5 4 . 4 . . . . . . . Cannons 75 | . . . . . 1 . . . . . . . . . . 12 3 29 13 5 5 7 . AOE 46 | . . . . . . . . . . . . . 3 . . 42 . . . 1 . . . Classes Destroyed 23 | . 2 . . . 8 2 . 1 2 . 1 . . . . 4 . 1 1 . . 1 . Worker 14 | . . . . . 2 3 . . . . . 6 . . . . . . . 3 . . . Builder 3 | . . . . . 1 . . . . . . 2 . . . . . . . . . . . Hauler 8 | . . . . . 2 6 . . . . . . . . . . . . . . . . . Recycler 3 | . . . . . 1 1 . . . . . . . . . . . . 1 . . . . Minesweeper 1 | . . . . . . . . . 1 . . . . . . . . . . . . . . Operator 2 | . . . . . . . . . . . . . . . . . . 1 1 . . . . Drone 1 | . . . . . . 1 . . . . . . . . . . . . . . . . . Watcher 5 | . . . . . 2 1 . . . . . . . . . . . 2 . . . . . Swarmer 40 | . 9 6 . . 6 . 1 . 1 . 2 1 . 4 . . . 7 . 3 . . . Grunt 69 | . 6 4 . 1 11 10 3 . 3 . . 6 6 . . . 1 2 8 . 4 4 . Brawler 7 | . . . . . 2 1 . . 1 . . 2 . . . . . 1 . . . . . Duelist 6 | . . . . . 1 . 1 . . . . 3 1 . . . . . . . . . . Sentry 20 | . . . . . 8 2 . 1 . . . 3 . . . . . 1 3 1 1 . . Demolisher 1 | . . . . . . . . . . . . . . . . . . . 1 . . . . Specialist 3 | . . . . . . . . . 2 . . . . . . . . . . 1 . . . Hunter 11 | . . . . . . 2 . . . . . 2 2 . . . 2 . 2 1 . . . Programmer 10 | . . . . . . . . 1 . . 1 2 . . . . . 4 . . . 2 . Behemoth 1 | . . . . . . . . . . . 1 . . . . . . . . . . . . Executioner 1 | . . . . . . . . . . . . . . . . . . . . . . 1 . Z-Light 11 | . . . . . . . . . . . . . . . . 11 . . . . . . . Assembler 2 | . . . . . . . . . . . . . . . . 2 . . . . . . . Assembled 59 | . . . . . . . . . . . . . . . . 45 . 14 . . . . . Golem 5 | . . . . . . . . . . . . . . . . 5 . . . . . . . Best Kill Streak 35 | . 3 3 . 1 10 5 4 1 3 . 2 6 4 2 . 35 1 14 4 5 3 3 . Combat Bots Only 35 | . 3 3 . 1 7 3 4 1 3 . 2 5 4 2 . 35 1 14 4 3 3 3 . Max Kills in Single Turn 15 | . 2 1 . 1 2 2 1 1 1 . 1 2 2 2 . 15 1 2 2 5 1 2 . Gunslinging 1 | . . . . . . . . . . . . . . 1 . . . . . . . . . Exploded 15 | . . . . . . . . . . . . . 2 . . 15 . . . 1 . . . Melee 1 | . . . . . . . . . . . . 1 . . . 1 . . 1 . . . . Uniques/NPCs Destroyed 1 | . . . . . . . . . . . . . . . . 1 . . . . . . . Z-Imprinter (-6/Deep Caves) Combat | -11 -10 -10 -10 -9 -8 -8 -7 -7 -7 -7 -6 -6 -6 -6 -6 -6 -5 -5 -5 -4 -4 -4 -3 -------- Run | Scr Mat Min Exi Min Mat Sto Fac Low Low Dat Pro Fac Low Low Zio Dee Pro Fac Ext Fac Upp War Pro Damage Taken 17399 | . 304 299 . . 1037 1002 214 167 937 . 196 1299 914 145 . 4813 350 832 263 147 232 3681 567 Core 2188 | . 40 73 . . 37 34 21 29 26 . 13 89 51 . . 559 22 38 . 13 . 842 301 Absorbed by Shields 12 | . . . . . . . . . . . . . . . . . . . 12 . . . . Redirected to Shielding 586 | . . . . . . . 34 19 48 . . . . . . 485 . . . . . . . Regen/Repaired (Parts) 202 | . . . . . . 51 135 . . . . 16 . . . . . . . . . . . Core Remaining (%) 73 | 100 . . . 54 . 87 . . . . 87 . . . . . 15 . 96 . . . . Volleys Fired 418 | . 32 23 . 1 90 61 13 8 16 . 15 53 21 4 . 20 3 5 23 8 8 14 . Largest 3 | . 2 2 . 2 3 3 3 3 3 . 3 3 3 3 . 3 1 3 3 3 3 3 . Hottest 206 | . 40 60 . 48 78 78 75 75 90 . 75 90 80 83 . 206 . 75 75 75 75 75 . Shots Fired 1232 | . 64 46 . 2 235 179 39 24 47 . 44 147 55 12 . 104 19 71 63 22 24 35 . Gun 919 | . 64 46 . 2 234 179 39 24 46 . 44 142 51 12 . 36 . . . . . . . Cannon 298 | . . . . . 1 . . . 1 . . 5 . . . 60 16 71 63 22 24 35 . Launcher 12 | . . . . . . . . . . . . . 4 . . 8 . . . . . . . Special 3 | . . . . . . . . . . . . . . . . . 3 . . . . . . Kinetic 1038 | . 64 43 . 2 234 179 39 24 46 . 44 142 51 12 . 84 16 58 . . . . . Thermal 175 | . . . . . . . . . 1 . . 5 . . . 12 . 13 63 22 24 35 . Explosive 12 | . . . . . . . . . . . . . 4 . . 8 . . . . . . . Electromagnetic 4 | . . 3 . . 1 . . . . . . . . . . . . . . . . . . Robot Hit Streak 31 | . 15 16 . 1 13 15 18 19 14 . 19 21 11 3 . 31 4 10 12 6 10 28 . Robot Miss Streak 5 | . 3 3 . 1 4 4 1 1 3 . 2 3 3 1 . 4 1 5 3 1 1 . . Penetration Max 1 | . . . . . 1 1 . . . . . 1 1 1 . . . . . . . . . Secondary Targets 27 | . . . . . 9 4 1 . 1 . 1 6 2 1 . 2 . . . . . . . Max Gunslinging Chain 1 | . . . . . 1 1 1 . 1 . 1 1 1 1 . 1 . . . . . . . Autonomous 134 | . . . . . . . . . . . . . . . . 60 16 58 . . . . . Shots Hit Robots 889 | . 45 32 . 1 142 124 32 21 40 . 31 116 42 6 . 109 13 41 38 13 16 27 . Core Hits 518 | . 19 20 . 1 55 40 19 4 23 . 12 51 25 5 . 163 4 22 21 17 7 10 . Critical Kills 15 | . . . . . . 2 . . 2 . . 9 1 1 . . . . . . . . . Critical Parts Destroyed 19 | . 1 . . . 1 2 1 . 2 . 1 8 3 . . . . . . . . . . Critical Strikes 46 | . 1 1 . . 1 4 1 . 4 . 1 18 4 1 . 5 . 5 . . . . . Destroy 30 | . 1 . . . 1 3 1 . 4 . 1 15 3 1 . . . . . . . . . Blast 8 | . . . . . . . . . . . . . . . . 3 . 5 . . . . . Corrupt 1 | . . 1 . . . . . . . . . . . . . . . . . . . . . Smash 5 | . . . . . . 1 . . . . . 3 1 . . . . . . . . . . Sever 2 | . . . . . . . . . . . . . . . . 2 . . . . . . . Melee Attacks 109 | . 1 . . . 1 15 . . 7 . . 34 5 3 1 42 . . . . . . . Impact 39 | . 1 . . . 1 15 . . 6 . . 7 5 3 1 . . . . . . . . Slashing 43 | . . . . . . . . . 1 . . . . . . 42 . . . . . . . Piercing 27 | . . . . . . . . . . . . 27 . . . . . . . . . . . Sneak Attacks 10 | . . . . . . 5 . . 2 . . 2 . . . 1 . . . . . . . Combat Hostiles 1 | . . . . . . . . . . . . . . . . 1 . . . . . . . Follow-up Attacks 1 | . . . . . . . . . 1 . . . . . . . . . . . . . . Damage Inflicted 30844 | . 596 285 . 24 2453 2625 534 358 797 . 524 2697 1093 141 . 9353 640 3423 1863 1250 794 1394 . Guns 11356 | . 572 285 . 24 2428 2103 534 358 667 . 524 2319 668 141 . 733 . . . . . . . Cannons 12360 | . . . . . 25 . . . . . . . . . . 3762 640 3385 1801 581 794 1372 . Explosions 4200 | . . . . . . . . . . . . . 386 . . 3177 . . . 637 . . . Melee 2758 | . 24 . . . . 518 . . 130 . . 378 35 . . 1673 . . . . . . . Ramming 170 | . . . . . . 4 . . . . . . 4 . . 8 . 38 62 32 . 22 . Kinetic 18610 | . 572 274 . 24 2428 2103 534 358 667 . 524 2319 668 141 . 4199 640 3159 . . . . . Thermal 5650 | . . . . . . . . . . . . . . . . 296 . 226 1801 1161 794 1372 . Explosive 3563 | . . . . . . . . . . . . . 386 . . 3177 . . . . . . . Electromagnetic 93 | . . 11 . . 25 . . . . . . . . . . . . . . 57 . . . Impact 944 | . 24 . . . . 518 . . 58 . . 309 35 . . . . . . . . . . Slashing 1745 | . . . . . . . . . 72 . . . . . . 1673 . . . . . . . Piercing 69 | . . . . . . . . . . . . 69 . . . . . . . . . . . Highest Corruption 4 | . . . . . 4 4 . . 2 2 2 . . . . . . . 4 . . 2 2 Average Corruption 2 | . . . . . 4 4 . . 2 2 2 . . . . . . . 2 . . 1 2 Corruption Purged . | . . . . . . . . . . . . . . . . . . . . . . . . Corruption Blocked . | . . . . . . . . . . . . . . . . . . . . . . . . Effects 112 | . . . . . 18 26 . . 10 2 18 . . . . . . . 31 . . 5 2 Message Errors 27 | . . . . . 6 6 . . 4 . 5 . . . . . . . 4 . . 2 . Matter Fused 34 | . . . . . 5 6 . . 2 1 7 . . . . . . . 10 . . 2 1 Heat Flow Errors 9 | . . . . . 2 1 . . 1 . 1 . . . . . . . 2 . . 1 1 Energy Discharges 12 | . . . . . . 1 . . 1 1 2 . . . . . . . 7 . . . . Parts Rejected 1 | . . . . . . 1 . . . . . . . . . . . . . . . . . Data Loss (minor) 14 | . . . . . 3 5 . . 1 . 2 . . . . . . . 3 . . . . Data Loss (major) 5 | . . . . . . 3 . . . . . . . . . . . . 2 . . . . Misfires 5 | . . . . . 1 2 . . . . . . . . . . . . 2 . . . . Alerts 2 | . . . . . 1 . . . 1 . . . . . . . . . . . . . . Weapon Failures 3 | . . . . . . 1 . . . . 1 . . . . . . . 1 . . . . Overload Shots . | . . . . . . . . . . . . . . . . . . . . . . . . Overflow Damage 1661 | . . . . . . 167 . . 38 . . 164 35 . . 519 84 588 16 31 6 13 . Projectiles 1139 | . . . . . . . . . . . . . . . . 426 84 588 16 6 6 13 . Explosions 58 | . . . . . . . . . . . . . . . . 33 . . . 25 . . . Melee 464 | . . . . . . 167 . . 38 . . 164 35 . . 60 . . . . . . . Knockbacks 25 | . . . . . . . . . . . . . . . . 18 . 6 . 1 . . . Impact 1 | . . . . . . . . . . . . . . . . . . . . 1 . . . Kinetic 22 | . . . . . . . . . . . . . . . . 17 . 5 . . . . . Secondary 2 | . . . . . . . . . . . . . . . . 1 . 1 . . . . . Self-Inflicted Damage 96 | . . . . . . . . . . . . . 63 . . 29 . . . . . 4 . Shots 3 | . . . . . . . . . . . . . 1 . . 2 . . . . . . . Rammed 4 | . . . . . . 1 . . . . . . 1 . . . . . . . . 2 . Targets Rammed 18 | . . . . . . 1 . . . . . . 1 . . 2 . 4 5 1 . 3 1 Kicked 14 | . . . . . . . . . . . . . . . . 2 . 4 5 1 . 1 1 Crushed . | . . . . . . . . . . . . . . . . . . . . . . . . Highest Temperature 381 | . . 44 . 18 238 206 224 185 235 . 173 252 248 44 . 381 . . 150 . . 122 168 Average Temperature 67 | . . 13 . 10 63 23 116 76 86 . 40 71 87 17 . 117 . . 90 . . 43 103 Received Heat Transfer 4004 | . 84 60 . . 468 414 60 54 177 . . 297 226 45 . 1138 24 116 18 . 76 729 18 Effects 3 | . . . . . 3 . . . . . . . . . . . . . . . . . . Interference 3 | . . . . . 3 . . . . . . . . . . . . . . . . . . Siege Activations . | . . . . . . . . . . . . . . . . . . . . . . . . Robots Corrupted . | . . . . . . . . . . . . . . . . . . . . . . . . Combat Hostiles . | . . . . . . . . . . . . . . . . . . . . . . . . Parts Fried 9 | . . . . . . 2 . . . . . 5 1 . . . . . 1 . . . . Impact Corruptions 11 | . . . . . . 5 . . 1 . . 4 1 . . . . . . . . . . Robots Melted . | . . . . . . . . . . . . . . . . . . . . . . . . Combat Hostiles . | . . . . . . . . . . . . . . . . . . . . . . . . Parts Melted 5 | . . . . . . . . . . . . . . . . 2 . 3 . . . . . Heat Transferred 3346 | . . . . . . . . . . . . . . . . 296 . 125 1000 775 425 725 . Parts Sabotaged . | . . . . . . . . . . . . . . . . . . . . . . . . Parts Stolen . | . . . . . . . . . . . . . . . . . . . . . . . . Parts Stripped . | . . . . . . . . . . . . . . . . . . . . . . . . Power Chain Reactions . | . . . . . . . . . . . . . . . . . . . . . . . . Missiles Intercepted . | . . . . . . . . . . . . . . . . . . . . . . . . Alert | -11 -10 -10 -10 -9 -8 -8 -7 -7 -7 -7 -6 -6 -6 -6 -6 -6 -5 -5 -5 -4 -4 -4 -3 ------- Run | Scr Mat Min Exi Min Mat Sto Fac Low Low Dat Pro Fac Low Low Zio Dee Pro Fac Ext Fac Upp War Pro Peak Influence 1605 | . 399 391 . 20 390 225 358 . . . . 538 . . . . . 520 819 1605 . . . Initial 401 | . . 96 . . 7 145 27 . . . . 18 . . . . . 50 231 401 . . . Average 242 | . 198 238 . 5 173 129 215 . . . . 89 . . . . . 192 551 829 . . . Maximum Alert Level 5 | . 1 1 . . 1 1 1 . . . . 2 . . . . . 2 3 5 . . . Low Security (%) 53 | 100 51 39 . 100 59 85 26 . . . . 85 . . . . . 55 . . . . . Level 1 25 | . 48 60 . . 40 14 73 . . . . 6 . . . . . 36 9 . . . . Level 2 15 | . . . . . . . . . . . . 8 . . . . . 8 73 46 . . . Level 3 3 | . . . . . . . . . . . . . . . . . . . 17 22 . . . Level 4 1 | . . . . . . . . . . . . . . . . . . . . 22 . . . Level 5 . | . . . . . . . . . . . . . . . . . . . . 7 . . . High Security . | . . . . . . . . . . . . . . . . . . . . . . . . Max Security . | . . . . . . . . . . . . . . . . . . . . . . . . Squads Dispatched 48 | . 5 . . 1 8 5 3 . . . . 6 . . . . . 7 4 9 . . . Investigation 18 | . 2 . . 1 4 1 1 . . . . 3 . . . . . 3 2 1 . . . Extermination 5 | . . . . . . . . . . . . 3 . . . . . 2 . . . . . Reinforcement 14 | . 3 . . . 1 4 . . . . . . . . . . . 2 . 4 . . . Assault 7 | . . . . . . . 1 . . . . . . . . . . . 2 4 . . . Garrison 4 | . . . . . 3 . 1 . . . . . . . . . . . . . . . . Intercept . | . . . . . . . . . . . . . . . . . . . . . . . . Searches Triggered . | . . . . . . . . . . . . . . . . . . . . . . . . Data Miner Redirects 10 | . . . . . . . . . . . . 2 . . . . . 4 3 1 . . . Construction Impeded 1 | . . . . . . . . . . . . . . . . . . . . 1 . . . Haulers Reinforced . | . . . . . . . . . . . . . . . . . . . . . . . . Active Scanning Responses . | . . . . . . . . . . . . . . . . . . . . . . . . Cargo Convoy Interrupts 1 | . . . . . . . . . . . . . . . . . . 1 . . . . . Stealth | -11 -10 -10 -10 -9 -8 -8 -7 -7 -7 -7 -6 -6 -6 -6 -6 -6 -5 -5 -5 -4 -4 -4 -3 --------- Run | Scr Mat Min Exi Min Mat Sto Fac Low Low Dat Pro Fac Low Low Zio Dee Pro Fac Ext Fac Upp War Pro Distress Signals 19 | . 3 . . . 5 3 . . . . . 4 . . . . . . 2 1 . 1 . Communications Jammed . | . . . . . . . . . . . . . . . . . . . . . . . . Distress Signals . | . . . . . . . . . . . . . . . . . . . . . . . . Times Spotted 417 | . 29 11 . 2 41 22 12 2 15 . 5 32 15 11 . 56 3 58 24 14 6 48 11 Peak Tracking Total 32 | . 5 3 . 2 9 4 5 1 4 . 3 8 4 4 . 32 1 6 5 6 3 15 10 Tactical Retreats 26 | . 2 1 . . 1 . . . 2 . . 3 1 3 . . 2 3 2 1 . 4 1 Traps | -11 -10 -10 -10 -9 -8 -8 -7 -7 -7 -7 -6 -6 -6 -6 -6 -6 -5 -5 -5 -4 -4 -4 -3 ------- Run | Scr Mat Min Exi Min Mat Sto Fac Low Low Dat Pro Fac Low Low Zio Dee Pro Fac Ext Fac Upp War Pro Traps Triggered 14 | . . . . . 2 2 . . . . . 2 . . . . . 4 3 1 . . . Indirectly . | . . . . . . . . . . . . . . . . . . . . . . . . Trap Hack Attempts . | . . . . . . . . . . . . . . . . . . . . . . . . Triggered . | . . . . . . . . . . . . . . . . . . . . . . . . Disarmed . | . . . . . . . . . . . . . . . . . . . . . . . . Reprogrammed . | . . . . . . . . . . . . . . . . . . . . . . . . Reused 4 | . . . . . . . . . 4 . . . . . . . . . . . . . . Traps Extracted . | . . . . . . . . . . . . . . . . . . . . . . . . Installed 10 | . . . . . . . . . 10 . . . . . . . . . . . . . . Triggered 26 | . . . . . . . . . 4 . . . . 1 . . . 1 . . . 20 . Most Traps Carried 5 | . . . . . . . . . 5 . . . . . . . . . . . . . . Exploded 1 | . . . 1 . . . . . . . . . . . . . . . . . . . . Machines | -11 -10 -10 -10 -9 -8 -8 -7 -7 -7 -7 -6 -6 -6 -6 -6 -6 -5 -5 -5 -4 -4 -4 -3 ---------- Run | Scr Mat Min Exi Min Mat Sto Fac Low Low Dat Pro Fac Low Low Zio Dee Pro Fac Ext Fac Upp War Pro Machines Disabled 62 | . 1 1 . . . 3 2 . 1 . . 3 . . . 3 . 6 5 37 . . . Max in Single Turn 27 | . 1 1 . . . 1 . . 1 . . 1 . . . 1 . 1 1 27 . . . Garrison Access 8 | . . . . . 1 1 1 . . . . 1 . . . . . 2 . 2 . . . Machines Sabotaged . | . . . . . . . . . . . . . . . . . . . . . . . . Garrisons Compromised 1 | . . . . . . . . . . . . . . . . . . 1 . . . . . Overloaded Fab Kills . | . . . . . . . . . . . . . . . . . . . . . . . . Hacking | -11 -10 -10 -10 -9 -8 -8 -7 -7 -7 -7 -6 -6 -6 -6 -6 -6 -5 -5 -5 -4 -4 -4 -3 --------- Run | Scr Mat Min Exi Min Mat Sto Fac Low Low Dat Pro Fac Low Low Zio Dee Pro Fac Ext Fac Upp War Pro Machines Accessed 82 | . 6 . 2 1 11 10 3 1 1 4 . 17 . 3 . . . 14 2 3 3 1 . Terminals 37 | . 4 . . . 8 7 1 . . . . 8 . . . . . 5 2 2 . . . Fabricators 9 | . . . . . . . . . . . . 4 . . . . . 4 . 1 . . . Repair Stations 3 | . . . . . . 1 1 . . . . 1 . . . . . . . . . . . Recycling Units 11 | . 2 . . . 2 1 . . . . . 3 . . . . . 3 . . . . . Scanalyzers . | . . . . . . . . . . . . . . . . . . . . . . . . Garrison Access 6 | . . . . . 1 1 1 . . . . 1 . . . . . 2 . . . . . Total Hacks 219 | . 15 . 2 1 28 25 8 1 1 28 . 43 . 7 . . . 40 5 7 7 1 . Successful 142 | . 10 . 2 1 15 14 3 1 1 28 . 20 . 7 . . . 27 2 3 7 1 . Failed 76 | . 4 . . . 13 11 5 . . . . 23 . . . . . 13 3 4 . . . Catastrophic 12 | . . . . . 2 . . . . . . 7 . . . . . 2 1 . . . . Database Lockouts 1 | . 1 . . . . . . . . . . . . . . . . . . . . . . Manual 87 | . 9 . 1 . 13 7 6 . 1 . . 17 . . 4 . . 26 . 2 . 1 . Terminals 109 | . 13 . . . 23 19 2 . . . . 24 . . . . . 18 5 5 . . . Fabricators 27 | . . . . . . . . . . . . 12 . . . . . 13 . 2 . . . Repair Stations 8 | . . . . . . 4 2 . . . . 2 . . . . . . . . . . . Recycling Units 14 | . 2 . . . 2 1 . . . . . 4 . . . . . 5 . . . . . Scanalyzers . | . . . . . . . . . . . . . . . . . . . . . . . . Garrison Access 13 | . . . . . 3 1 4 . . . . 1 . . . . . 4 . . . . . Terminal Hacks 87 | . 7 . 2 1 9 8 . 1 1 28 . 9 . 7 . . . 3 2 1 7 1 . Record 22 | . . . 1 . . . . . . 11 . . . 5 . . . . . . 5 . . Part Schematic 13 | . 2 . . . . . . . . 10 . 1 . . . . . . . . . . . Robot Schematic 5 | . . . . . . 1 . . . 4 . . . . . . . . . . . . . Robot Analysis 2 | . 1 . . . 1 . . . . . . . . . . . . . . . . . . Prototype ID Bank 9 | . 1 . . . 1 1 . . . 3 . 3 . . . . . . . . . . . Open Door 13 | . . . . 1 . 3 . 1 1 . . . . 2 . . . 1 1 . 2 1 . Level Access Points 1 | . . . . . 1 . . . . . . . . . . . . . . . . . . Branch Access Points 3 | . . . . . 1 . . . . . . 1 . . . . . 1 . . . . . Terminal Index 1 | . . . . . . . . . . . . 1 . . . . . . . . . . . Alert Level 1 | . . . . . 1 . . . . . . . . . . . . . . . . . . Unreport Threat 5 | . . . . . 2 1 . . . . . 1 . . . . . . . 1 . . . Locate Traps 6 | . 3 . . . . . . . . . . 2 . . . . . . 1 . . . . Recall Reinforcements 1 | . . . . . . 1 . . . . . . . . . . . . . . . . . Zone Layout 4 | . . . . . 2 1 . . . . . . . . . . . 1 . . . . . EX-Prototype ID Bank 1 | . . . 1 . . . . . . . . . . . . . . . . . . . . Fabricator Hacks 8 | . . . . . . . . . . . . 2 . . . . . 5 . 1 . . . Network Status 3 | . . . . . . . . . . . . 1 . . . . . 1 . 1 . . . Load Schematic 2 | . . . . . . . . . . . . . . . . . . 2 . . . . . Build 3 | . . . . . . . . . . . . 1 . . . . . 2 . . . . . Repair Station Hacks 6 | . . . . . . 2 2 . . . . 2 . . . . . . . . . . . Scan Component 3 | . . . . . . 1 1 . . . . 1 . . . . . . . . . . . Repair 3 | . . . . . . 1 1 . . . . 1 . . . . . . . . . . . Recycling Unit Hacks 2 | . . . . . . . . . . . . . . . . . . 2 . . . . . Report Inventory 2 | . . . . . . . . . . . . . . . . . . 2 . . . . . Scanalyzer . | . . . . . . . . . . . . . . . . . . . . . . . . Garrison Access Hacks 5 | . . . . . 1 1 . . . . . 1 . . . . . 2 . . . . . Seal Access 5 | . . . . . 1 1 . . . . . 1 . . . . . 2 . . . . . Unauthorized Hacks 34 | . 3 . . . 5 3 1 . . . . 6 . . . . . 15 . 1 . . . Terminals 17 | . 1 . . . 3 2 1 . . . . 2 . . . . . 7 . 1 . . . Track 3 | . . . . . 1 . . . . . . . . . . . . 2 . . . . . Assimilate 2 | . . . . . . . 1 . . . . . . . . . . 1 . . . . . Botnet 11 | . 1 . . . 2 2 . . . . . 2 . . . . . 3 . 1 . . . Operators 1 | . . . . . . . . . . . . . . . . . . 1 . . . . . Fabricators 7 | . . . . . . . . . . . . 2 . . . . . 5 . . . . . Prioritize 1 | . . . . . . . . . . . . . . . . . . 1 . . . . . Liberate 2 | . . . . . . . . . . . . . . . . . . 2 . . . . . Fabnet 4 | . . . . . . . . . . . . 2 . . . . . 2 . . . . . Repair Stations . | . . . . . . . . . . . . . . . . . . . . . . . . Recycling Units 10 | . 2 . . . 2 1 . . . . . 2 . . . . . 3 . . . . . Tunnel 10 | . 2 . . . 2 1 . . . . . 2 . . . . . 3 . . . . . Scanalyzers . | . . . . . . . . . . . . . . . . . . . . . . . . Garrison Access . | . . . . . . . . . . . . . . . . . . . . . . . . Data Cores Recovered 1 | . . . . . . . . . . . . . . . . . . 1 . . . . . Used . | . . . . . . . . . . . . . . . . . . . . . . . . Hacking Detections 49 | . 3 . . . 8 6 3 . . . . 14 . . . . . 10 2 3 . . . Full Trace Events 4 | . . . . . . . 1 . . . . 1 . . . . . . 1 1 . . . Feedback Events 1 | . . . . . . . . . . . . . . . . . . . 1 . . . . Corruption 1 | . . . . . . . . . . . . . . . . . . . 1 . . . . Feedback Blocked . | . . . . . . . . . . . . . . . . . . . . . . . . Robot Schematics Acquired 7 | . . . . . . 1 . . . 4 . . . . 2 . . . . . . . . Robots Built 7 | . . . . . . . . . . . . 3 . . . . . 4 . . . . . Authchips 2 | . . . . . . . . . . . . . . . . . . 2 . . . . . Time 244 | . . . . . . . . . . . . 152 . . . . . 92 . . . . . Total Robot Build Rating 43 | . . . . . . . . . . . . 15 . . . . . 28 . . . . . Part Schematics Acquired 27 | . 2 . . . . . . . . 10 . 1 . . 14 . . . . . . . . Parts Built . | . . . . . . . . . . . . . . . . . . . . . . . . Authchips . | . . . . . . . . . . . . . . . . . . . . . . . . Time . | . . . . . . . . . . . . . . . . . . . . . . . . Total Part Build Rating . | . . . . . . . . . . . . . . . . . . . . . . . . Parts Repaired 3 | . . . . . . 1 1 . . . . 1 . . . . . . . . . . . Time 117 | . . . . . . 38 60 . . . . 19 . . . . . . . . . . . Parts Recycled . | . . . . . . . . . . . . . . . . . . . . . . . . Recycled Matter . | . . . . . . . . . . . . . . . . . . . . . . . . Retrieved Matter . | . . . . . . . . . . . . . . . . . . . . . . . . Retrieved Components . | . . . . . . . . . . . . . . . . . . . . . . . . Parts Scanalyzed . | . . . . . . . . . . . . . . . . . . . . . . . . Part Schematics Acquired . | . . . . . . . . . . . . . . . . . . . . . . . . Parts Damaged . | . . . . . . . . . . . . . . . . . . . . . . . . Bothacking | -11 -10 -10 -10 -9 -8 -8 -7 -7 -7 -7 -6 -6 -6 -6 -6 -6 -5 -5 -5 -4 -4 -4 -3 ------------ Run | Scr Mat Min Exi Min Mat Sto Fac Low Low Dat Pro Fac Low Low Zio Dee Pro Fac Ext Fac Upp War Pro Used RIF Installer . | . . . . . . . . . . . . . . . . . . . . . . . . Robots Hacked 20 | . . . . . . . . . . . . . . . . . 1 2 4 4 3 6 . Non-combat . | . . . . . . . . . . . . . . . . . . . . . . . . Combat 20 | . . . . . . . . . . . . . . . . . 1 2 4 4 3 6 . Robot Hacks Applied . | . . . . . . . . . . . . . . . . . . . . . . . . Relay Couplers Released 6 | . . . . . . . 3 . . . . . . . . . . 1 . 2 . . . Machine Destruction 6 | . . . . . . . 3 . . . . . . . . . . 1 . 2 . . . Fabnet Peak Effective % 8 | . . . . . . . . . . . . . . . . . 6 6 6 8 8 8 2 Autooverrided 20 | . . . . . . . . . . . . . . . . . 1 2 4 4 3 6 . Robots Rewired 13 | . . . . . . . . . . . . . . . . . . . 13 . . . . Allies Hacked . | . . . . . . . . . . . . . . . . . . . . . . . . Hacks Repelled . | . . . . . . . . . . . . . . . . . . . . . . . . Allies | -11 -10 -10 -10 -9 -8 -8 -7 -7 -7 -7 -6 -6 -6 -6 -6 -6 -5 -5 -5 -4 -4 -4 -3 -------- Run | Scr Mat Min Exi Min Mat Sto Fac Low Low Dat Pro Fac Low Low Zio Dee Pro Fac Ext Fac Upp War Pro Total Allies 78 | . . . . . . 10 1 . . . 1 3 . 2 5 . 1 10 29 4 6 6 . Largest Group 19 | . . . . . . 10 6 1 1 . 1 3 . 2 5 5 1 4 19 15 3 1 . Highest-Rated Group 661 | . . . . . . 173 109 26 26 . 96 87 . 62 118 118 41 272 661 431 138 47 . Highest-Rated Ally 159 | . . . . . . 29 29 26 26 . 96 29 . 31 31 31 41 68 159 64 49 47 . Total Orders 17 | . . . . . . 5 . . . . . . . 8 . . . 1 2 . . . 1 STAY 1 | . . . . . . . . . . . . . . . . . . . 1 . . . . FOLLOW 1 | . . . . . . . . . . . . . . . . . . . 1 . . . . EXPLORE 11 | . . . . . . 4 . . . . . . . 7 . . . . . . . . . RETURN 4 | . . . . . . 1 . . . . . . . 1 . . . 1 . . . . 1 Ally Attacks 431 | . . . . . . 25 23 . . . 15 39 . 3 . 34 . 53 162 56 17 4 . Total Damage 12538 | . . . . . . 345 1003 . . . 726 589 . 64 . 1169 . 1769 3647 2525 536 165 . Kills 93 | . . . . . . 2 9 . . . 3 3 . 1 . 9 . 23 25 17 1 . . Allies Corrupted 3 | . . . . . . . . . . . . . . . . . . . 2 . 1 . . Allies Melted 2 | . . . . . . . . . . . . 1 . . . . . . . . . 1 . Intel | -11 -10 -10 -10 -9 -8 -8 -7 -7 -7 -7 -6 -6 -6 -6 -6 -6 -5 -5 -5 -4 -4 -4 -3 ------- Run | Scr Mat Min Exi Min Mat Sto Fac Low Low Dat Pro Fac Low Low Zio Dee Pro Fac Ext Fac Upp War Pro Robot Analysis Total 2 | . 1 . . . 1 . . . . . . . . . . . . . . . . . . Derelict Logs Recovered 15 | . . 1 . 1 . . . 2 2 . 2 . 2 2 1 . . . . . 2 . . Drone Launches 27 | . . . . . . 18 . . . . . . . 7 . . . 1 . . . . 1 Drone Recoveries 17 | . . . . . . 10 . . . . . . . 5 . . . 1 . . . . 1 Exploration | -11 -10 -10 -10 -9 -8 -8 -7 -7 -7 -7 -6 -6 -6 -6 -6 -6 -5 -5 -5 -4 -4 -4 -3 ------------- Run | Scr Mat Min Exi Min Mat Sto Fac Low Low Dat Pro Fac Low Low Zio Dee Pro Fac Ext Fac Upp War Pro Turns Passed 27338 | 60 843 460 434 314 1062 1228 425 1479 2042 139 1528 1953 1669 1023 1165 3450 1019 2413 1528 505 1053 1421 125 Spaces Moved 16778 | 47 574 236 324 208 565 587 249 1157 1291 80 933 1217 1160 678 845 1790 511 1279 851 341 746 951 158 Core 258 | 3 . . . . . . . . . . . . . . . . . . . . . 98 157 Treads 187 | . 5 71 . . 5 33 1 . . . . . . 6 . 66 . . . . . . . Legs 5727 | . . . . . . . . . . . . . . . . 1150 511 1279 851 341 746 849 . Wheels 10200 | 44 569 165 324 208 560 554 248 1157 1291 80 933 1217 1160 672 845 173 . . . . . . . Hover 406 | . . . . . . . . . . . . . . . . 401 . . . . . 4 1 Flight . | . . . . . . . . . . . . . . . . . . . . . . . . Fastest Speed 50 | 50 100 130 130 145 120 125 125 125 125 170 120 120 130 130 130 52 136 136 136 136 136 50 50 Average Speed 144 | 96 113 163 131 145 124 133 150 125 147 170 158 132 135 138 133 171 188 179 136 136 136 130 52 Slowest Speed 320 | 100 240 240 145 145 240 240 240 125 185 185 185 145 145 320 145 320 189 189 136 180 136 240 200 Overloaded Moves . | . . . . . . . . . . . . . . . . . . . . . . . . Propulsion Burnouts . | . . . . . . . . . . . . . . . . . . . . . . . . Robots Hopped . | . . . . . . . . . . . . . . . . . . . . . . . . Cave-ins Triggered . | . . . . . . . . . . . . . . . . . . . . . . . . Exploration Rate (%) 63 | 3 87 46 70 33 73 78 4 97 96 68 92 38 91 98 83 80 63 35 65 10 99 86 31 Regions Visited 23 Branch Regions 17 Pre-discovered Areas 17 | . 2 . 1 1 2 1 . 1 . 1 1 2 . . 1 . . 3 . . 1 . . Known Exits Taken 11 | . . . . . 1 1 . . 1 . 1 1 1 . 1 . 1 1 1 1 . . . Unknown Exits Taken 12 | 1 1 1 1 1 . . 1 1 . 1 . . . 1 . 1 . . . . 1 1 . Scrap Searched 27 | . . 1 . 1 . . . 5 2 . 5 . 4 2 4 . 1 . . . 2 . . Spaces Dug 43 | . . . . . 1 2 . . 5 . . 27 4 3 . . . 1 . . . . . Terrain Destroyed 221 | . . . . . 3 2 . . 5 . . 29 56 5 . 14 7 18 15 55 6 6 . Melee 36 | . . . . . 1 2 . . 4 . . 22 4 3 . . . . . . . . . Projectile 86 | . . . . . 2 . . . 1 . . 7 2 2 . 14 7 18 15 6 6 6 . AOE 99 | . . . . . . . . . . . . . 50 . . . . . . 49 . . . Terrain Rammed . | . . . . . . . . . . . . . . . . . . . . . . . . Walls Destroyed . | . . . . . . . . . . . . . . . . . . . . . . . . Machines Disabled . | . . . . . . . . . . . . . . . . . . . . . . . . Actions | -11 -10 -10 -10 -9 -8 -8 -7 -7 -7 -7 -6 -6 -6 -6 -6 -6 -5 -5 -5 -4 -4 -4 -3 --------- Run | Scr Mat Min Exi Min Mat Sto Fac Low Low Dat Pro Fac Low Low Zio Dee Pro Fac Ext Fac Upp War Pro Total 19082 | 58 698 271 336 219 791 924 285 1182 1391 85 969 1423 1217 745 886 2054 563 1380 1172 364 768 1101 200 Wait 997 | . 69 5 . 4 52 151 9 4 25 . 7 62 19 48 1 73 45 79 190 4 11 102 37 Move 16756 | 46 573 235 323 207 564 586 248 1156 1290 79 932 1216 1160 677 844 1789 510 1278 850 340 745 950 158 Hop . | . . . . . . . . . . . . . . . . . . . . . . . . Pick Up 143 | 6 7 1 2 5 14 15 6 5 14 . 6 12 2 2 8 28 . 1 . . 1 8 . Fast Attach 87 | 6 4 2 1 . 2 10 1 1 . . 2 4 . . 9 37 1 1 . 2 . 4 . Attach 54 | . . 2 1 . 6 9 4 . 8 3 2 1 1 1 3 10 1 . . . . . 2 Detach 41 | . 3 1 . . 1 2 1 . 1 3 . . . . 4 7 2 5 1 1 3 5 1 Swap 152 | . 5 1 2 1 39 31 1 3 10 . 3 23 8 7 2 6 . 1 . 1 . 8 . Drop 167 | . 4 1 7 1 22 23 2 5 11 . 2 18 1 3 14 41 1 1 . 2 . 7 1 Fire 418 | . 32 23 . 1 90 61 13 8 16 . 15 53 21 4 . 20 3 5 23 8 8 14 . Melee 107 | . 1 . . . 1 15 . . 6 . . 34 5 3 1 41 . . . . . . . Ram 2 | . . . . . . . . . . . . . . . . . . . . . . 2 . Kick 14 | . . . . . . . . . . . . . . . . 2 . 4 5 1 . 1 1 Crush 1 | . . . . . . 1 . . . . . . . . . . . . . . . . . Escape Stasis 26 | . . . . . . 16 . . . . . . . . . . . 5 . 5 . . . Rewire 103 | . . . . . . . . . . . . . . . . . . . 103 . . . . Trap 10 | . . . . . . . . . 10 . . . . . . . . . . . . . . Miscellaneous 4 | . . . . . . 4 . . . . . . . . . . . . . . . . . Route ------- -11/Scrapyard -10/Materials (discovered 3 exits: [*Mat x2] / [*Min]) -10/Mines -10/Exiles -9/Mines -8/Materials (discovered 5 exits: *Fac x3 / *Sto x2) -8/Storage -7/Factory (discovered 2 exits: *Fac / *Low) -7/Lower Caves -7/Lower Caves (discovered 2 exits: *Fac / *Dat) -7/Data Miner -6/Proximity Caves -6/Factory (discovered 4 exits: *Fac x2 / *Low x2) -6/Lower Caves -6/Lower Caves (discovered 2 exits: *Fac / *Zio) -6/Zion (discovered 2 exits: *Dee / *Pro) -6/Deep Caves -5/Proximity Caves -5/Factory (discovered 6 exits: *Fac x2 / *Upp x2 / *Ext x2) -5/Extension -4/Factory -4/Upper Caves (discovered 2 exits: [*Upp] / *War) -4/Warlord -3/Proximity Caves History --------- Turn | Location | Event 30 | -11/Scrapyard | Discovered new exit (range 16) 61 | -11/Scrapyard | Entered Materials 236 | -10/Materials | Discovered new exit (range 6) 298 | -10/Materials | Discovered new exit (range 16) 302 | -10/Materials | Build established: Mutant 436 | -10/Materials | Central database locked down 766 | -10/Materials | Discovered new exit (range 12) 904 | -10/Materials | Entered Mines 1186 | -10/Mines | Learned Materials interactive machine intel 1234 | -10/Mines | Deemed a non-threat by the Exiles lab entrance 1358 | -10/Mines | Discovered new exit (range 5) 1364 | -10/Mines | Entered Exiles 1396 | -10/Exiles | Met 8R-AWN 1419 | -10/Exiles | Met EX-HEX 1495 | -10/Exiles | Met EX-DEC 1522 | -10/Exiles | Learned location of Zion (-6) 1566 | -10/Exiles | Met EX-BIN 1585 | -10/Exiles | Aligned with FarCom system 1586 | -10/Exiles | Given EX-Vault access code 1617 | -10/Exiles | Opened EX-Vault 1627 | -10/Exiles | Found Longsword +1 1636 | -10/Exiles | Found AWS/Autocannon 1663 | -10/Exiles | Warned to stay clear of 0b10 Research branches 1676 | -10/Exiles | Exiles lab attacked by MAIN.C 1784 | -10/Exiles | Discovered new exit (range 11) 1798 | -10/Exiles | Left Exiles lab with AWS/Autocannon 1798 | -10/Exiles | Entered Mines 1807 | -9/Mines | Received a Rocket Launcher from a helpful Derelict 1827 | -9/Mines | Discovered new exit (range 4) 2001 | -9/Mines | Met a Derelict shopkeep closing up shop 2112 | -9/Mines | Entered Materials 2112 | -8/Materials | Evolved 4 slots: Propulsion x1, Utility x2, Weapon x1 2113 | -8/Materials | Loaded intel: 19 interactive machine locations 2116 | -8/Materials | Discovered new exit (range 8) 2222 | -8/Materials | Identified exit to Storage 2316 | -8/Materials | Discovered new exit (range 8) 2324 | -8/Materials | Identified exit to Factory 2364 | -8/Materials | Garrison activated, responded to threat 2916 | -8/Materials | Destroyed 7 combat bots 3174 | -8/Materials | Entered Storage 4227 | -8/Storage | Assisted by bots powering up and referring to "LRC-V3" 4333 | -8/Storage | Discovered exit to Factory (range 16) 4389 | -8/Storage | Repaired Reflective Plating 4402 | -8/Storage | Entered Factory 4402 | -7/Factory | Accompanied by 6 allies 4402 | -7/Factory | Evolved 2 slots: Utility x2 4478 | -7/Factory | Garrison activated, responded to threat 4531 | -7/Factory | Discovered new exit (range 12) 4636 | -7/Factory | Identified exit to Factory 4648 | -7/Factory | Repaired Enh. Autogun? 4757 | -7/Factory | Discovered new exit (range 6) 4784 | -7/Factory | Build established: Skirmisher 4827 | -7/Factory | Entered Lower Caves 4827 | -7/Lower Caves | Accompanied by 1 ally 4932 | -7/Lower Caves | Attracted the attention of an 0b10 checkpoint 5128 | -7/Lower Caves | Encountered a Warlord checkpoint 5141 | -7/Lower Caves | Build established: Tank 5406 | -7/Lower Caves | Learned 4 Factory zone layouts 5974 | -7/Lower Caves | Discovered new exit (range 7) 6306 | -7/Lower Caves | Entered another Lower Caves area 6306 | -7/Lower Caves | Accompanied by 1 ally 6454 | -7/Lower Caves | Discovered exit to Factory (range 10) 6685 | -7/Lower Caves | Encountered a Warlord checkpoint 6706 | -7/Lower Caves | Identified exit to Data Miner 6861 | -7/Lower Caves | Learned 8 Factory zone layouts 7003 | -7/Lower Caves | Spotted B-75 Beast 7693 | -7/Lower Caves | Build established: Mutant 7977 | -7/Lower Caves | Acquired the password to a Derelict Tinkerer's latest research 7990 | -7/Lower Caves | Found Prototype Special Weapon 8263 | -7/Lower Caves | Attracted the attention of an 0b10 base 8285 | -7/Lower Caves | Caught by Unaware searching for contraband prototypes 8348 | -7/Lower Caves | Entered Data Miner 8350 | -7/Data Miner | Discovered new exit (range 7) 8389 | -7/Data Miner | Met Data Miner 8418 | -7/Data Miner | Learned location of Section 7 (-2) 8418 | -7/Data Miner | Acquired the access code to Warlord's prototype stash 8447 | -7/Data Miner | Received God Mode back door access code from Data Miner 8487 | -7/Data Miner | Entered Proximity Caves 8502 | -6/Proximity Caves | Learned 8 Factory zone layouts 8792 | -6/Proximity Caves | Build established: Scavenger-Gunner 8827 | -6/Proximity Caves | Escorted by Enhanced Grunt 9051 | -6/Proximity Caves | Spotted B-75 Beast 9079 | -6/Proximity Caves | Destroyed B-75 Beast 9987 | -6/Proximity Caves | Discovered exit to Factory (range 9) 10015 | -6/Proximity Caves | Entered Factory 10015 | -6/Factory | Evolved 2 slots: Utility x2 10016 | -6/Factory | Identified exit to Lower Caves 10016 | -6/Factory | Identified exit to Factory 10523 | -6/Factory | Build established: Skirmisher 10838 | -6/Factory | Repaired Imp. Terrain Scanner 11196 | -6/Factory | Discovered exit to Factory (range 20) 11204 | -6/Factory | Incoming investigation squad redirected 11330 | -6/Factory | Fabricated G-50 Soldier? 11444 | -6/Factory | Build established: Assassin 11721 | -6/Factory | Incoming investigation squad redirected 11968 | -6/Factory | Entered Lower Caves 12223 | -6/Lower Caves | Spotted B-75 Beast 12268 | -6/Lower Caves | Build established: Gunner 12598 | -6/Lower Caves | Learned Factory interactive machine intel 12714 | -6/Lower Caves | Identified exit to Lower Caves 13572 | -6/Lower Caves | Build established: Mutant 13630 | -6/Lower Caves | Attracted the attention of an 0b10 checkpoint 13637 | -6/Lower Caves | Entered another Lower Caves area 13646 | -6/Lower Caves | Discovered exit to Factory (range 17) 13802 | -6/Lower Caves | Encountered a Warlord checkpoint 13920 | -6/Lower Caves | Learned Factory stockpile data 13944 | -6/Lower Caves | Build established: Gunner 14004 | -6/Lower Caves | Discovered new exit (range 75) 14363 | -6/Lower Caves | A Commander dispatched an escort 14373 | -6/Lower Caves | Learned location of 1 exit from Research 14373 | -6/Lower Caves | Learned 8 Research zone layouts 14373 | -6/Lower Caves | Learned Armory security intel 14442 | -6/Lower Caves | Learned location of 1 exit from Proximity Caves 14534 | -6/Lower Caves | Build established: Mutant 14660 | -6/Lower Caves | Entered Zion 14660 | -6/Zion | Accompanied by 2 allies 14661 | -6/Zion | Commander's escort returned to base 14661 | -6/Zion | Commander's escort returned to base 14698 | -6/Zion | Found Prototype Launcher 14698 | -6/Zion | Identified Gui. Missile Launcher 14702 | -6/Zion | Found Prototype Launcher 14702 | -6/Zion | Identified Rocket Array 14777 | -6/Zion | Found GAL Module 14837 | -6/Zion | Discovered new exit (range 15) 14850 | -6/Zion | Acquired unknown access codes intercepted by a Zionite 14996 | -6/Zion | Given the Hacking Drone Bay 15000 | -6/Zion | Found Prototype Device 15010 | -6/Zion | Identified Hacking Drone Bay 15018 | -6/Zion | Received a hallucinogenic algorithm 15131 | -6/Zion | Gained Derelict followers 15298 | -6/Zion | Rebuked by Imprinter 15488 | -6/Zion | Identified exit to Proximity Caves 15515 | -6/Zion | Build established: Derelict-Mutant 15583 | -6/Zion | Learned Factory fabricator intel 15664 | -6/Zion | Identified exit to Deep Caves 15797 | -6/Zion | Opened final containment barrier to the Deep Caves 15818 | -6/Zion | Saw the warning signs outside the Deep Caves entrance 15825 | -6/Zion | Entered Deep Caves 15825 | -6/Deep Caves | Accompanied by 5 allies 16035 | -6/Deep Caves | Z-Facility disabled 16038 | -6/Deep Caves | Build established: Derelict-Gladiator 16045 | -6/Deep Caves | Attacked by Z-Imprinter 16083 | -6/Deep Caves | Destroyed Z-Imprinter 16120 | -6/Deep Caves | Lost 4 parts (1p1n2u) 16130 | -6/Deep Caves | Found Prototype Protection 16130 | -6/Deep Caves | Identified Zio. Weapon Casing 16328 | -6/Deep Caves | Found Prototype Protection 16328 | -6/Deep Caves | Identified Zio. Heavy Carapace 16377 | -6/Deep Caves | Found Zio. Weapon Casing 16394 | -6/Deep Caves | Lost 5 parts (1n4u) 16404 | -6/Deep Caves | Found Zio. Weapon Casing 16506 | -6/Deep Caves | Found Zio. Heavy Carapace 16571 | -6/Deep Caves | Found Zio. Heavy Carapace 16797 | -6/Deep Caves | Build established: Scavenger-Tank 17892 | -6/Deep Caves | Discovered new exit (range 7) 18029 | -6/Deep Caves | Spotted as-57369 18045 | -6/Deep Caves | Core integrity fell below 50% 18089 | -6/Deep Caves | Core integrity fell below 20% 18092 | -6/Deep Caves | Destroyed as-57369 18119 | -6/Deep Caves | Lost 8 parts (1p2n5u) 18245 | -6/Deep Caves | Found Zio. Weapon Casing 18518 | -6/Deep Caves | Build established: Scavenger-Mutant 18541 | -6/Deep Caves | Triggered Deep Caves wall 18575 | -6/Deep Caves | Exposed GOLEM chamber 18580 | -6/Deep Caves | Found GOLEM Unit 18581 | -6/Deep Caves | Destroyed 35 combat bots 18582 | -6/Deep Caves | Spotted AS-94967 18582 | -6/Deep Caves | Spotted AS-91092 18590 | -6/Deep Caves | Destroyed AS-94967 18633 | -6/Deep Caves | Destroyed AS-91092 18649 | -6/Deep Caves | Found GOLEM Unit 18656 | -6/Deep Caves | Found GOLEM Unit 18682 | -6/Deep Caves | Found GOLEM Unit 18716 | -6/Deep Caves | Found GOLEM Unit 18729 | -6/Deep Caves | Identified Molecular Deconstructor 18771 | -6/Deep Caves | Found GOLEM Unit 18800 | -6/Deep Caves | Found GOLEM Unit 18833 | -6/Deep Caves | Found GOLEM Unit 18845 | -6/Deep Caves | Found GOLEM Unit 18948 | -6/Deep Caves | Build established: Golem 19275 | -6/Deep Caves | Entered Proximity Caves 19425 | -5/Proximity Caves | Spotted B-75 Beast 20294 | -5/Proximity Caves | Entered Factory 20294 | -5/Factory | Evolved 2 slots: Power x1, Utility x1 20296 | -5/Factory | Loaded intel: 54 interactive machine locations 20297 | -5/Factory | Loaded intel: 6 fabricator locations 20738 | -5/Factory | Discovered new exit (range 16) 20777 | -5/Factory | Identified exit to Upper Caves 21090 | -5/Factory | Discovered new exit (range 12) 21144 | -5/Factory | Identified exit to Factory 21579 | -5/Factory | Fabricated X-77 Beamer (x2) 21625 | -5/Factory | Fabricated X-77 Beamer? 21747 | -5/Factory | Identified exit to Extension 21906 | -5/Factory | Discovered exit to Factory (range 15) 22076 | -5/Factory | Assembled infested ambush trap array 22105 | -5/Factory | Incoming assault squad redirected 22105 | -5/Factory | Assembled infested ambush trap array 22134 | -5/Factory | Incoming assault squad redirected 22196 | -5/Factory | Destroyed 14 combat bots 22197 | -5/Factory | Cargo convoy interrupted 22222 | -5/Factory | Incoming assault squad redirected 22414 | -5/Factory | Lost 3 parts (2u1w) 22477 | -5/Factory | Allied Derelicts emerged from ambush trap array 22565 | -5/Factory | Incoming investigation squad redirected 22707 | -5/Factory | Entered Extension 22707 | -5/Extension | Accompanied by 3 allies 22801 | -5/Extension | Rescued a captive Derelict 22801 | -5/Extension | Rescued a captive Derelict 22831 | -5/Extension | Rescued a captive Derelict 22836 | -5/Extension | Rescued a captive Derelict 22851 | -5/Extension | Rescued a captive Derelict 22851 | -5/Extension | Rescued a captive Derelict 22869 | -5/Extension | Rescued a captive Derelict 22893 | -5/Extension | Rescued a captive Derelict 23015 | -5/Extension | Rescued A7 23043 | -5/Extension | Rescued a captive Derelict 23050 | -5/Extension | Rescued a captive Derelict 23262 | -5/Extension | Build established: Commander-Golem 23607 | -5/Extension | First assault squad dispatched 23633 | -5/Extension | Incoming assault squad redirected 23633 | -5/Extension | Incoming assault squad redirected 23687 | -5/Extension | Spotted B-75 Beast 23727 | -5/Extension | Allies destroyed B-75 Beast 23812 | -5/Extension | Rescued a captive Derelict 23812 | -5/Extension | Rescued a captive Derelict 23952 | -5/Extension | Extracted ID and sensor layout for unrecognized location from A7's data core 24085 | -5/Extension | Discovered exit to Factory (range 3) 24101 | -5/Extension | Incoming investigation squad redirected 24235 | -5/Extension | Entered Factory 24235 | -4/Factory | Accompanied by 15 allies 24235 | -4/Factory | Evolved 2 slots: Utility x2 24485 | -4/Factory | First assault squad dispatched 24586 | -4/Factory | Incoming investigation squad redirected 24720 | -4/Factory | Discovered new exit (range 12) 24739 | -4/Factory | Identified exit to Upper Caves 24740 | -4/Factory | Entered Upper Caves 24884 | -4/Upper Caves | A Derelict revealed a hidden shortcut to "reach the base" 24887 | -4/Upper Caves | Build established: Golem 24990 | -4/Upper Caves | A Commander dispatched an escort 24998 | -4/Upper Caves | Learned Research emergency access door positions 24998 | -4/Upper Caves | Learned Extension emergency access door positions 24998 | -4/Upper Caves | Learned Armory terminal intel 24998 | -4/Upper Caves | Learned Research garrison access intel 25044 | -4/Upper Caves | Learned Research emergency access door positions 25467 | -4/Upper Caves | Discovered new exit (range 2) 25793 | -4/Upper Caves | Entered Warlord 26421 | -4/Warlord | Found Prototype Device 26422 | -4/Warlord | Identified Minesniffer Drone Bay 26436 | -4/Warlord | Met Warlord 26461 | -4/Warlord | Warlord's base attacked by MAIN.C 26461 | -4/Warlord | Opened Warlord's prototype stash 26469 | -4/Warlord | Found Prototype Device 26470 | -4/Warlord | Identified Exp. Focal Shield 26483 | -4/Warlord | Found Prototype Device 26484 | -4/Warlord | Identified Exp. Phase Shifter 26503 | -4/Warlord | Found Prototype Processor 26504 | -4/Warlord | Identified Exp. Armor Integrity Analyzer 26811 | -4/Warlord | Warlord forces counterattacked 26935 | -4/Warlord | Opened side exit 26962 | -4/Warlord | Discovered new exit (range 9) 26962 | -4/Warlord | Spotted Executioner 26962 | -4/Warlord | Spotted Executioner 27049 | -4/Warlord | Destroyed Executioner 27128 | -4/Warlord | Lost 12 parts (1p2n5u4w) 27136 | -4/Warlord | Warlord base infiltrated, sounded retreat 27176 | -4/Warlord | Lost 3 parts (1n2u) 27185 | -4/Warlord | Spotted Executioner 27191 | -4/Warlord | Core integrity fell below 50% 27214 | -4/Warlord | Entered Proximity Caves 27239 | -3/Proximity Caves | Lost 4 parts (1n3u) 27263 | -3/Proximity Caves | Spotted B-86 Titan 27312 | -3/Proximity Caves | Core integrity fell below 20% 27334 | -3/Proximity Caves | Attracted the attention of an 0b10 checkpoint 27339 | -3/Proximity Caves | Destroyed by S-43 Plague with Heavy Machine Gun Last Messages --------------- 27196_ Acquired 11 matter. 27196_ Slug penetrates Earth. 27208_ Exp. Armor Integrity Analyzer destroyed. 27208_ System corrupted by crushing effect (+1). 27208_ Knocked back. 27210_ Acquired Imp. Antigrav System. LOCATION=UNKNOWN GOAL=ESCAPE 27215_ System corrupted: Heat flow error (+211). 27215_ Dropped Imp. Antigrav System. 27217_ GOLEM Unit beginning Asb. Alloy Leg integration. 27254_ Minesniffer Drone released from Minesniffer Drone Bay. 27255_ Slug penetrates Wall. 27255_ Slug penetrates Minesniffer Drone. 27256_ Minesniffer Drone retrieved by Minesniffer Drone Bay. 27264_ System corrupted: Matter fused (-9). 27274_ Slug penetrates Wall. 27319_ Kicked S-43 Plague out of the way. 27334_ Y-72 Warden: "INTERCEPTING UNREGISTERED DERELICT." 27336_ Penetrated by Slug. Map ----- +----------------------------------------------------+ | ?????????????????????????????????????????????????? | | ?????????????????????????????????????????????????? | | ?????????????????????????????????????????????????? | | ?????????????????????????????????????????????????? | | ?????????????????????????????????????????????????? | | ?????????????????????????????????????????????????? | | ?????????????????????????????????????????????????? | | ?????????????????????????????????????????????????? | | ?????????????????????????????????????????????????? | | ?????????????????????????????????????????????????? | | ?????????????????????????????????????????????????? | | ?????????????????????????????????????????????????? | | ????????##???????????????????????????????????????? | | ????????# ???????????????????????????????????????? | | ????????# ???????????####????????????????????????? | | ????????# ?????????## ##???????????????????????? | | ????????# ?######?## ##??????????????????????? | | ????????# ## ###; #??????????????????????? | | ?????#### s #??????????????????????? | | ????## s #??????????????????????? | | ????# s #??????????????????????? | | ?????# #### #??????????????????????? | | ?????## ##??# Y ##?????????????????????? | | ??????# #???# #?????????????????????? | | ??????# ### ##### #?????????????????????? | | ??????????## ## @##?????????????????????? | | ???????????# #### ##??????????????????????? | | ??????????## #?# #???????????????????????? | | ??????????# #?# #???????????????????????? | | ??????????# ##?## ???????????????????????? | | ??????????# ##???## ??????????????????????? | | ??????????# #?????### ?????????????????????? | | ??????????# ## #??????????????????????????????? | | ??????????# ### ???????????????????????????? | | ??????????# ### ????????????????????????? | | ####?????## #? #?????????????????????? | | # ####??# #?# #####??????????????????????? | | #### #??# #??????????????????????????? | | ## #???# #??????????????????????????? | | ### #????###??????????????????????????? | | ??# #?????????????????????????????????? | | ??# ####?????????????????????????????????? | | #?## ## ##????????????????????????????????????? | | ##?##### #?????????????????????????????????????? | | #?????## #?????????????????????????????????????? | | #??????# #?????????????????????????????????????? | | #??????####?????????????????????????????????????? | | #???????????????????????????????????????????????? | | ##?####?????????????????????????????????????????? | | ### #?????????????????????????????????????????? | +----------------------------------------------------+ Best States ------------- Heat Dissipation 111 Energy Generation 45 Energy Capacity 2100 Matter Stores 300 Matter Capacity 300 Sight Range 16 Terrain Scan Range 20 Terrain Scan Density 210 Jamming Range 12 Additional Mass Support 20 Armor Coverage 2400 Resistance: KI 15 Resistance: TH 15 Resistance: EX 15 Resistance: EM 20 Resistance: I 15 Resistance: S 15 Resistance: P 15 Core Shielding 30 Propulsion Shielding 66 Weapon Shielding 100 Phase Shifting 20 Evasion (%) 75 Targeting Accuracy 8 Melee Accuracy 6 Target Analysis 5 Core Analysis 8 Armor Integrity Analysis 50 Recoil Reduction 3 Matter Filtering 30 Particle Charging 20 Defensive Hacking 12 Authchip Count 2 Item Schematics ----------------- Hcp. Storage Unit | -10/Materials | Hacked Huge Storage Unit | -10/Materials | Hacked Combat Drone Bay | -7/Data Miner | Free Lgt. Regenerative Plating | -7/Data Miner | Free Cld. Aerolev Unit | -7/Data Miner | Free Gravity Neutralizer | -7/Data Miner | Free Imp. Heavy Laser | -7/Data Miner | Free Gyrokinetic Inverter | -7/Data Miner | Free Point Defense System | -7/Data Miner | Free KE Penetrator | -7/Data Miner | Free Imp. Recalibrator | -7/Data Miner | Free Imp. Component Analysis Suite | -7/Data Miner | Free Adv. Cooling System | -6/Factory | Hacked Nuclear Pulse Thruster | -6/Zion | Archive Mak. Trap Scanner | -6/Zion | Archive Imp. Reaction Control System | -6/Zion | Archive Imp. Shock Absorption System | -6/Zion | Archive Hvy. Flak Cannon | -6/Zion | Archive Neutrino Core | -6/Zion | Archive Plasma Rifle | -6/Zion | Archive Adv. Cryofiber Web | -6/Zion | Archive Mak. Terrain Scanner | -6/Zion | Archive Adv. Terrain Scanner | -6/Zion | Archive Imp. Thermal Shield | -6/Zion | Archive Adv. Melee Analysis Suite | -6/Zion | Archive Enh. Optical Array | -6/Zion | Archive Lyr. Heavy Armor Plating | -6/Zion | Archive Robot Schematics ------------------ H-55 Commando | -8/Storage | Hacked G-50 Soldier | -7/Data Miner | Free M-14 Sweeper | -7/Data Miner | Free S-27 Virus | -7/Data Miner | Free B-48 Gladiator | -7/Data Miner | Free H-66 Slayer | -6/Zion | Archive X-77 Beamer | -6/Zion | Archive Fabricated ------------ G-50 Soldier | x3 | -6/Factory | Preloaded X-77 Beamer | x2 | -5/Factory | Authchip X-77 Beamer | x2 | -5/Factory | Authchip Alien Tech Used ----------------- None Achievements -------------- None Challenges ------------ None Game ------ Seed WarpAluminumSink Manual? 0 Play Time 03:29:10 Cumulative 299.4 hours Start 2022.06.06 @ 01:49:22 End 2022.06.06 @ 05:17:34 Sessions 1 Manual Loads 0 Difficulty Rogue Special Mode None Game No. 85 Rogue 85 Adventurer 0 Explorer 0 Win Type - Total 14 Types 12/0/2/0/0/0/0/0/0 Lore% 87 Gallery% 88 Achievement% 73 Wizard Run 0 Options --------- ASCII 0 Keyboard 0 Movement Numpad Keybinds 0 Fullscreen 1 Font 14/SmallcapsGlow Map View 84x54 Tactical HUD 1 Map Filters NONE Filters NONE Steam 1 RUN: 8f923cd4-1744-4acb-a85f-1f816d3a3418